fUSD/lending_fUSD_20250402
["ID","MTS","AMOUNT","RATE_DAILY","PERIOD"]
[357046874,1743629439683,-500.0,0.00047455,60]
[357046875,1743629439693,-500.0,0.00047455,60]
[357046876,1743629439703,-776.0,0.00047455,60]
[357046877,1743629439712,-807.0,0.00047455,60]
[357046878,1743629439722,-500.0,0.00047455,60]
[357046879,1743629439740,-150.0,0.00047455,60]
[357046880,1743629439751,-228.2231869,0.00047455,60]
[357046881,1743629439760,-1959.0,0.00047455,60]
[357046882,1743629439770,-500.0,0.00047455,60]
[357046883,1743629439780,-605.64195692,0.00047455,60]
[357046884,1743629439789,-894.23843349,0.00047482,60]
[357046885,1743629439799,-500.0,0.00047482,60]
[357046886,1743629439809,-776.0,0.00047482,60]
[357046887,1743629439818,-807.0,0.00047482,60]
[357046888,1743629439828,-500.0,0.00047482,60]
[357046889,1743629439838,-151.6646585,0.00047482,60]
[357046890,1743629439847,-1959.0,0.00047482,60]
[357046891,1743629439858,-500.0,0.00047482,60]
[357046892,1743629439867,-996.62985168,0.0004751,60]
[357046893,1743629439877,-776.0,0.0004751,60]
[357046894,1743629439886,-807.0,0.0004751,60]
[357046895,1743629439895,-662.25191646,0.0004751,60]
[357046896,1743629439905,-1959.0,0.0004751,60]
[357046897,1743629439914,-500.0,0.0004751,60]
[357046898,1743629439924,-776.0,0.00047537,60]
[357046899,1743629439934,-807.0,0.00047537,60]
[357046900,1743629439943,-1959.0,0.00047537,60]
[357046901,1743629439953,-500.0,0.00047537,60]
[357046902,1743629439962,-776.0,0.00047564,60]
[357046903,1743629439973,-807.0,0.00047564,60]
[357046904,1743629439982,-1959.0,0.00047564,60]
[357046905,1743629439991,-500.0,0.00047564,60]
[357046906,1743629440000,-209.0,0.0004757,30]
[357046907,1743629440010,-776.0,0.00047592,60]
[357046908,1743629440019,-807.0,0.00047592,60]
[357046909,1743629440028,-1959.0,0.00047592,60]
[357046910,1743629440128,-776.0,0.00047619,60]
[357046911,1743629440138,-807.0,0.00047619,60]
[357046912,1743629440147,-1959.0,0.00047619,60]
[357046913,1743629440157,-776.0,0.00047647,60]
[357046914,1743629440166,-807.0,0.00047647,60]
[357046916,1743629440175,-1959.0,0.00047647,60]
[357046918,1743629440184,-776.0,0.00047674,60]
[357046920,1743629440195,-807.0,0.00047674,60]
[357046922,1743629440204,-1959.0,0.00047674,60]
[357046924,1743629440213,-776.0,0.00047701,60]
[357046926,1743629440223,-807.0,0.00047701,60]
[357046928,1743629440232,-1959.0,0.00047701,60]
[357046930,1743629440241,-157.13,0.0004771,120]
[357046932,1743629440250,-776.0,0.00047729,60]
[357046934,1743629440259,-807.0,0.00047729,60]
[357046936,1743629440268,-1959.0,0.00047729,60]
[357046938,1743629440278,-776.0,0.00047756,60]
[357046940,1743629440287,-807.0,0.00047756,60]
[357046942,1743629440297,-1959.0,0.00047756,60]
[357046944,1743629440306,-776.0,0.00047784,60]
[357046946,1743629440315,-807.0,0.00047784,60]
[357046948,1743629440323,-1959.0,0.00047784,60]
[357046950,1743629440332,-150.0,0.00047801,2]
[357046952,1743629440341,-776.0,0.00047811,60]
[357046954,1743629440350,-807.0,0.00047811,60]
[357046956,1743629440359,-1959.0,0.00047811,60]
[357046958,1743629440369,-776.0,0.00047838,60]
[357046960,1743629440378,-807.0,0.00047838,60]
[357046962,1743629440387,-1959.0,0.00047838,60]
[357046964,1743629440396,-776.0,0.00047866,60]
[357046966,1743629440405,-807.0,0.00047866,60]
[357046968,1743629440414,-1959.0,0.00047866,60]
[357046970,1743629440423,-776.0,0.00047893,60]
[357046972,1743629440433,-807.0,0.00047893,60]
[357046974,1743629440442,-1959.0,0.00047893,60]
[357046976,1743629440451,-784.33226602,0.00047921,60]
[357046978,1743629440460,-818.33888176,0.00047921,60]
[357046980,1743629440470,-1961.456023,0.00047921,60]
[357046982,1743629440479,-204.84316045,0.00048,7]
[357046984,1743629440488,-1000.0,0.00048,25]
[357046986,1743629440497,-1000.0,0.00048,24]
[357046988,1743629440506,-1000.0,0.00048,23]
[357046989,1743629440515,-1000.0,0.00048,20]
[357046991,1743629440524,-1000.0,0.00048,15]
[357046993,1743629440532,-1001.0,0.00048,4]
[357046995,1743629440542,-5858.00886203,0.00048,30]
[357046997,1743629440550,-500.0,0.00048,120]
[357047000,1743629440569,-500.0,0.00048,120]
[357047003,1743629440585,-500.0,0.00048,120]
[357047006,1743629440604,-500.0,0.00048,120]
[357047009,1743629440624,-500.0,0.00048,120]
[357047011,1743629440639,-500.0,0.00048,120]
[357047013,1743629440659,-500.0,0.00048,120]
[357047014,1743629440678,-500.0,0.00048,120]
[357047015,1743629440697,-500.0,0.00048,120]
[357047016,1743629440716,-518.42076781,0.00048,120]
[357047017,1743629440734,-500.0,0.00048,120]
[357047018,1743629440751,-500.0,0.00048,120]
[357047019,1743629440765,-500.0,0.00048,120]
[357047020,1743629440785,-500.0,0.00048,120]
[357047021,1743629440797,-500.0,0.00048,120]
[357047022,1743629440815,-500.0,0.00048,120]
[357047023,1743629440827,-500.0,0.00048,120]
[357047024,1743629440843,-500.0,0.00048,120]
[357047025,1743629440857,-500.0,0.00048,120]
[357047026,1743629440871,-500.0,0.00048,120]
[357047027,1743629440885,-500.0,0.00048,120]
[357047028,1743629440900,-500.0,0.00048,120]
[357047029,1743629440914,-500.0,0.00048,120]
[357047030,1743629440929,-500.0,0.00048,120]
[357047031,1743629440943,-500.0,0.00048,120]
[357047032,1743629440957,-500.0,0.00048,120]
[357047033,1743629440973,-500.0,0.00048,120]
[357047034,1743629440987,-500.0,0.00048,120]
[357047035,1743629441002,-500.0,0.00048,120]
[357047036,1743629441016,-500.0,0.00048,120]
[357047037,1743629441031,-500.0,0.00048,120]
[357047038,1743629441046,-500.0,0.00048,120]
[357047039,1743629441061,-500.0,0.00048,120]
[357047040,1743629441076,-500.0,0.00048,120]
[357047041,1743629441090,-500.0,0.00048,120]
[357047042,1743629441105,-500.0,0.00048,120]
[357047043,1743629441120,-500.0,0.00048,120]
[357047044,1743629441134,-500.0,0.00048,120]
[357047045,1743629441148,-500.0,0.00048,120]
[357047046,1743629441164,-500.0,0.00048,120]
[357047047,1743629441179,-500.0,0.00048,120]
[357047048,1743629441193,-500.0,0.00048,120]
[357047049,1743629441208,-500.0,0.00048,120]
[357047050,1743629441222,-500.0,0.00048,120]
[357047051,1743629441236,-500.0,0.00048,120]
[357047052,1743629441251,-500.0,0.00048,120]
[357047053,1743629441266,-500.0,0.00048,120]
[357047054,1743629441280,-5266.03561068,0.00048,5]
[357047055,1743629441296,-151.0,0.00048,14]
[357047056,1743629441393,-169.485123,0.00048,14]
[357047057,1743629441413,-169.485123,0.00048,14]
[357047058,1743629441422,-2112.353602,0.00048,14]
[357047059,1743629441432,-2112.353602,0.00048,14]
[357047060,1743629441442,-1065.0,0.00048056,30]
[357047061,1743629441454,-1000.0,0.0004807,3]
[357047062,1743629441463,-803.27493108,0.0004807,3]
[357047063,1743629441472,-798.3572,0.000481,30]
[357047064,1743629441481,-922.6129,0.000481,30]
[357047065,1743629441490,-151.0,0.00048158,14]
[357047066,1743629441500,-151.0,0.00048158,14]
[357047067,1743629441509,-1000.0,0.0004817,3]
[357047068,1743629441520,-500.0,0.0004817,3]
[357047069,1743629441529,-151.0,0.0004817,14]
[357047070,1743629441539,-150.0,0.0004818,2]
[357047071,1743629441548,-1511.75740186,0.0004818,2]
[357047072,1743629441557,-150.0,0.0004818,2]
[357047073,1743629441567,-1218.02359325,0.0004818,2]
[357047074,1743629441575,-626.278734,0.00048185,14]
[357047075,1743629441584,-626.278734,0.00048185,14]
[357047076,1743629441594,-151.0,0.00048185,14]
[357047077,1743629441603,-151.0,0.00048192,14]
[357047078,1743629441612,-2500.0,0.000482,7]
[357047079,1743629441622,-151.0,0.000482,14]
[357047080,1743629441631,-151.0,0.000482,14]
[357047081,1743629441640,-151.0,0.00048247,14]
[357047082,1743629441650,-151.0,0.00048274,14]
[357047083,1743629441664,-255.030016,0.00048274,14]
[357047084,1743629441673,-1000.0,0.0004837,3]
[357047085,1743629441682,-500.0,0.0004837,3]
[357047086,1743629441691,-151.0,0.0004837,14]
[357047087,1743629441701,-777.232824,0.0004837,14]
[357047088,1743629441710,-777.232824,0.0004837,14]
[357047089,1743629441719,-151.0,0.0004837,14]
[357047090,1743629441728,-151.0,0.0004837,14]
[357047091,1743629441738,-151.0,0.0004837,14]
[357047092,1743629441748,-1917.22616068,0.0004839,120]
[357047093,1743629441757,-8456.28255034,0.000484,15]
[357047094,1743629441766,-3483.55118777,0.000484,15]
[357047095,1743629441775,-500.0,0.0004847,3]
[357047096,1743629441785,-1000.0,0.0004847,3]
[357047097,1743629441794,-307335.99534819,0.00048492,3]
[357047098,1743629442022,-12730.78109711,0.00048492,3]
[357047099,1743629442033,-7810.41989694,0.00048492,3]
[357047106,1743629442619,-480.001,0.00017656,2]
[357047107,1743629442628,-480.001,0.00017656,2]
[357047108,1743629442638,-480.001,0.00017656,2]
[357047109,1743629442647,-480.001,0.00017656,2]
[357047110,1743629442662,-480.001,0.00017656,2]
[357047111,1743629442673,-480.001,0.00017656,2]
[357047112,1743629442684,-480.001,0.00017656,2]
[357047113,1743629442698,-480.001,0.00017656,2]
[357047114,1743629442707,-480.001,0.00017656,2]
[357047115,1743629442717,-480.001,0.00017656,2]
[357047116,1743629442729,-850.0,0.00034465,5]
[357047117,1743629442738,-1284.0,0.0003495,2]
[357047118,1743629442748,-1284.0,0.0003795,2]
[357047119,1743629442757,-1284.0,0.0004095,2]
[357047120,1743629442766,-1284.0,0.0004395,2]
[357047121,1743629442775,-1129.5,0.0004695,2]
[357047122,1743629442784,-210.69259019,0.00047455,60]
[357047123,1743629442794,-30229.83512728,0.00048492,3]
[357047124,1743629442805,-6431.09399793,0.00048492,3]
[357047125,1743629442817,-610.48827094,0.00048492,3]
[357047126,1743629442828,-1260.58730635,0.00048492,3]
[357047127,1743629442839,-645.4769591,0.00048492,3]
[357047128,1743629442851,-1999.60814649,0.00048492,3]
[357047129,1743629442867,-2189.13,0.00048492,3]
[357047130,1743629442879,-1000.13438337,0.00048492,3]
[357047131,1743629443046,-1771.23997312,0.00048492,3]
[357047132,1743629443057,-84555.0,0.00048492,3]
[357047133,1743629443068,-42260.0,0.00048492,3]
[357047134,1743629443082,-330.60174327,0.00048492,3]
[357047135,1743629443175,-0.00736868,0.00048492,3]
[357047199,1743629445129,-845.01,0.0003495,2]
[357047200,1743629445241,-95.82509851,0.0003495,2]
[357047201,1743629445253,-76.16490149,0.0003495,2]
[357047202,1743629445263,-1017.0,0.0003795,2]
[357047203,1743629445273,-1017.0,0.0004095,2]
[357047204,1743629445283,-1017.0,0.0004395,2]
[357047205,1743629445292,-24411.3971144,0.00048492,3]
[357047208,1743629445672,-1012.507,0.0004695,2]
[357047209,1743629445681,-1143.0,0.00048,7]
[357047210,1743629445691,-355057.08631535,0.00048492,3]
[357047211,1743629445703,-21126.81745329,0.00048492,3]
[357047212,1743629445729,-76459.16122303,0.00048492,3]
[357047213,1743629445794,-26728.95162334,0.00048492,3]
[357047214,1743629445971,-2696.39804662,0.00048492,3]
[357047215,1743629445983,-8463.8,0.00048492,3]
[357047240,1743630428340,-152.35,0.00017497,2]
[357047241,1743630428361,-250.0,0.00017499,2]
[357047242,1743630428383,-350.0,0.00017499,12]
[357047243,1743630428406,-250.0,0.00017503,2]
[357047244,1743630428430,-350.0,0.00017503,12]
[357047245,1743630428453,-300.0,0.00017506,2]
[357047246,1743630428477,-890.88,0.00017507,2]
[357047247,1743630428499,-200.0,0.00017507,2]
[357047248,1743630428520,-200.0,0.00017507,2]
[357047249,1743630428541,-250.0,0.00017507,2]
[357047250,1743630428563,-1000.0,0.00017507,2]
[357047251,1743630428584,-150.0,0.00017507,7]
[357047252,1743630428605,-593.47,0.00017507,2]
[357047253,1743630428625,-4036.74565837,0.00017507,2]
[357047254,1743630434115,-4286.28901589,0.00017507,2]
[357047255,1743630437082,-1091.23948611,0.00017507,2]
[357047488,1743630570107,-250.0,0.00018727,2]
[357047489,1743630570128,-350.0,0.00018727,12]
[357047490,1743630570154,-250.0,0.00019246,2]
[357047491,1743630570175,-350.0,0.00019246,12]
[357047492,1743630570196,-1000.0,0.00019695,2]
[357047493,1743630570222,-250.0,0.00020179,2]
[357047494,1743630570265,-350.0,0.00020179,12]
[357047495,1743630570306,-1000.0,0.00021883,2]
[357047496,1743630570348,-457.11,0.00021883,2]
[357047497,1743630570391,-263.44625,0.00021883,7]
[357047500,1743630631724,-250.0,0.00019408,2]
[357047501,1743630631734,-250.0,0.00020646,2]
[357047502,1743630631744,-350.0,0.00020646,12]
[357047503,1743630631753,-250.0,0.00021349,2]
[357047504,1743630631762,-350.0,0.00021349,12]
[357047505,1743630631771,-36.54375,0.00021883,7]
[357047506,1743630631780,-250.0,0.00022395,2]
[357047507,1743630631789,-350.0,0.00022395,12]
[357047508,1743630631798,-150.99,0.00022774,2]
[357047509,1743630631807,-289.17273954,0.00023736,2]
[357047510,1743630631816,-232.73,0.00023836,2]
[357047511,1743630631825,-654.94725948,0.00024072,2]
[357047512,1743630631837,-345.05274052,0.00024072,2]
[357047513,1743630631845,-8165.02360149,0.00024452,2]
[357047514,1743630631854,-289.17273953,0.00024948,2]
[357047515,1743630631863,-289.17273953,0.0002616,2]
[357047516,1743630631872,-1000.0,0.0002626,2]
[357047517,1743630631881,-222.58,0.00026849,2]
[357047518,1743630631891,-280.53,0.00028407,19]
[357047519,1743630631900,-222.58,0.00032646,2]
[357047520,1743630631909,-150.0,0.00034548,10]
[357047521,1743630631918,-169.04,0.00035,2]
[357047522,1743630631927,-158.47748254,0.00035068,2]
[357047523,1743630631939,-74.25251746,0.00035068,2]
[357047524,1743630631948,-205.18614437,0.00035139,2]
[357047525,1743630631958,-152.4,0.00035616,2]
[357047526,1743630631967,-467.25,0.00036358,2]
[357047527,1743630631976,-342.21622287,0.0003666,2]
[357047528,1743630631985,-1699.01299084,0.000372,103]
[357047529,1743630631994,-1699.01299082,0.000372,103]
[357047530,1743630632003,-1699.01299082,0.000372,103]
[357047531,1743630632012,-1000.0,0.000373,2]
[357047532,1743630632021,-157.13,0.00038065,120]
[357047533,1743630632030,-2197.076,0.00038268,2]
[357047534,1743630632039,-151.0,0.00038268,2]
[357047535,1743630632049,-1012.507,0.00038268,2]
[357047536,1743630632058,-222.58,0.00038443,2]
[357047537,1743630632067,-152.4,0.00038584,2]
[357047538,1743630632078,-467.25,0.00038622,2]
[357047539,1743630632087,-505.0,0.00040411,2]
[357047540,1743630632096,-467.25,0.00040886,2]
[357047541,1743630632105,-1699.01299082,0.00041086,120]
[357047542,1743630632114,-151.0,0.00041268,2]
[357047543,1743630632123,-152.4,0.00041552,2]
[357047544,1743630632132,-150.0,0.000429,2]
[357047545,1743630632142,-798.0,0.00043,30]
[357047546,1743630632151,-922.0,0.00043,30]
[357047547,1743630632160,-467.25,0.0004315,2]
[357047548,1743630632170,-222.58,0.00044239,2]
[357047549,1743630632179,-151.0,0.00044268,2]
[357047550,1743630632188,-152.4,0.00044521,2]
[357047551,1743630632197,-467.25,0.00045414,2]
[357047553,1743630632206,-157.13,0.00046275,120]
[357047555,1743630632215,-232.73,0.00046301,2]
[357047556,1743630632224,-689.686156,0.00046734,4]
[357047559,1743630632234,-1112.74032318,0.0004704,10]
[357047560,1743630632243,-151.0,0.00047268,2]
[357047562,1743630632252,-152.4,0.00047489,2]
[357047564,1743630632261,-1048.39710842,0.00047522,10]
[357047565,1743630632271,-1038.96062014,0.00047522,10]
[357047566,1743630632280,-400.0,0.000476,17]
[357047567,1743630632289,-467.25,0.00047677,2]
[357047568,1743630632298,-900.0,0.000477,17]
[357047569,1743630632307,-540.36993761,0.000478,17]
[357047570,1743630632319,-481.37471803,0.000478,17]
[357047571,1743630632339,-278.25534436,0.000478,17]
[357047572,1743630632348,-1370.2349694,0.000479,17]
[357047573,1743630632670,-429.7650306,0.000479,17]
[357047574,1743630632680,-1453.2349694,0.00047992,3]
[357047575,1743630632745,-3382.64,0.00047992,3]
[357047577,1743630637749,-16346.91460496,0.00047992,3]
[357047578,1743630637762,-538875.43780027,0.00047992,3]
[357047579,1743630637773,-2528.01834361,0.00047992,3]
[357047580,1743630637867,-624.55000005,0.00047992,3]
[357047581,1743630637900,-691.34196812,0.00047992,3]
[357047582,1743630637932,-262.05505227,0.00047992,3]
[357047615,1743630644463,-18984.86804028,0.00047992,3]
[357047741,1743630646869,-3466.54369844,0.00047992,3]
[357047743,1743631189150,154.85,0.00014005,2]
[357047744,1743631397552,227.97701645,0.00034657,120]
[357047745,1743631422456,178.43721206,0.00034657,120]
[357047746,1743631605149,-332.33979638,0.00017505,2]
[357047747,1743631626092,-667.66020362,0.00017505,2]
[357047748,1743631626119,-320.24148649,0.00017506,2]
[357047749,1743631646113,-179.75851351,0.00017506,2]
[357047750,1743631646136,-156.22281562,0.00017506,2]
[357047751,1743631646160,-550.0,0.00017506,2]
[357047752,1743631646185,-300.0,0.00017506,2]
[357047753,1743631646209,-200.0,0.00017507,2]
[357047754,1743631646232,-881.36,0.00017507,2]
[357047755,1743631646255,-150.0,0.00017507,2]
[357047756,1743631646276,-200.0,0.00017507,2]
[357047757,1743631646302,-663.55,0.00017507,2]
[357047758,1743631646322,-150.0,0.00017507,7]
[357047759,1743631646343,-500.0,0.00017507,2]
[357047760,1743631646364,-411.74092881,0.00017507,2]
[357047761,1743631649135,-88.25907119,0.00017507,2]
[357047762,1743631649158,-448.23276007,0.00017507,2]
[357047763,1743631649179,-394.90873233,0.00017507,2]
[357047764,1743631653099,-350.03126767,0.00017507,2]
[357047765,1743631653121,-2200.25530556,0.00017507,2]
[357047766,1743631722222,500.0,0.00034657,120]
[357047767,1743631730482,499.99,0.00034657,120]
[357047768,1743631785916,500.0,0.00032,120]
[357047769,1743631789634,-438.0,0.00017506,2]
[357047770,1743631789661,-46407.15,0.00017507,2]
[357047771,1743631796205,478.61,0.00032,120]
[357047773,1743631813213,2000.0,0.0003053,120]
[357047797,1743631832075,-18536.51573006,0.00017507,2]
[357047798,1743631832091,-777.87325405,0.00017507,2]
[357047799,1743631832103,-251.9265,0.00017507,2]
[357047800,1743631832214,-496.59156997,0.00017507,2]
[357047801,1743631832225,-252.252,0.00017507,2]
[357048087,1743631837937,-3623.60042211,0.00017507,2]
[357048090,1743631837950,-21239.37521825,0.00017507,2]
[357048091,1743631837959,-3101.43,0.00017507,2]
[357048092,1743631837968,-250.0,0.00017507,2]
[357048093,1743631837978,-350.0,0.00017507,12]
[357048094,1743631837987,-1469.36,0.00017647,2]
[357048095,1743631837997,-250.0,0.00018087,2]
[357048096,1743631838007,-350.0,0.00019256,12]
[357048097,1743631838016,-257.31,0.00019257,2]
[357048098,1743631838026,-194.95,0.00019257,2]
[357048099,1743631838036,-14519.8,0.00019257,2]
[357048100,1743631838046,-250.0,0.00019257,2]
[357048101,1743631838056,-350.0,0.00019257,12]
[357048102,1743631838066,-400.30995879,0.00019545,2]
[357048103,1743631838075,-161.13210016,0.00020644,2]
[357048104,1743631838084,-309.61498046,0.00020644,2]
[357048105,1743631838094,-299.99,0.00020644,7]
[357048106,1743631838103,-150.99,0.00020862,2]
[357048107,1743631838113,-999.99,0.00020862,2]
[357048108,1743631838122,-9999.99,0.00021067,2]
[357048109,1743631838132,-9999.99,0.00021067,2]
[357048110,1743631838141,-500.0,0.000211,2]
[357048111,1743631838150,-500.0,0.00022425,2]
[357048112,1743631838160,-511.1033,0.00022462,2]
[357048113,1743631838170,-4771.79,0.00022562,2]
[357048114,1743631838180,-13254.73,0.00022562,2]
[357048115,1743631838189,-6045.74,0.00022562,2]
[357048116,1743631838198,-357.51006,0.00022978,2]
[357048117,1743631838208,-500.0,0.00022978,2]
[357048118,1743631838217,-340.46133964,0.00022978,2]
[357048119,1743631838227,-500.0,0.00022978,2]
[357048120,1743631838236,-250.0,0.00023131,2]
[357048121,1743631838246,-1000.0,0.00024658,2]
[357048122,1743631838255,-177.98,0.00025077,2]
[357048123,1743631838264,-538.306,0.00025404,2]
[357048124,1743631838274,-1136.9363,0.00025404,2]
[357048125,1743631838284,-500.0,0.00026579,2]
[357048126,1743631838294,-1428.985,0.00026649,2]
[357048127,1743631838304,-446.8774,0.00026649,2]
[357048128,1743631838314,-8140.21253351,0.00026749,2]
[357048129,1743631838324,-154.45,0.00026849,2]
[357048130,1743631838334,-250.0,0.00027,2]
[357048131,1743631838343,-150.605,0.00027,2]
[357048132,1743631838353,-150.605,0.00027,2]
[357048133,1743631838362,-150.605,0.00027,2]
[357048134,1743631838371,-150.605,0.00027,2]
[357048135,1743631838381,-150.605,0.00027,2]
[357048136,1743631838390,-150.605,0.00027,2]
[357048137,1743631838399,-150.605,0.00027,2]
[357048138,1743631838408,-845.4974168,0.00028457,2]
[357048139,1743631838418,-1000.0,0.00028457,5]
[357048140,1743631838429,-300.0,0.00029,2]
[357048141,1743631838442,-8140.21253345,0.00029188,2]
[357048142,1743631838451,-374.91,0.00029798,2]
[357048143,1743631838461,-2564.16,0.00030775,2]
[357048144,1743631838472,-350.0,0.00031,2]
[357048145,1743631838481,-8140.21253345,0.00031627,2]
[357048146,1743631838493,-500.0,0.00031751,3]
[357048147,1743631838502,-1102.17,0.00031751,2]
[357048148,1743631838514,-160.21,0.00031852,3]
[357048149,1743631838524,-6979.62,0.00031862,2]
[357048150,1743631838534,-192.73662536,0.0003212,2]
[357048151,1743631838543,-220.40266326,0.0003212,2]
[357048152,1743631838554,-37133.82,0.00032121,2]
[357048153,1743631838564,-180.24,0.00032271,120]
[357048154,1743631838573,-1594.51,0.00032421,2]
[357048155,1743631838583,-200.0,0.00032748,2]
[357048156,1743631838592,-1748.18,0.0003285,2]
[357048157,1743631838602,-150.0,0.0003285,2]
[357048158,1743631838612,-157.13,0.00032932,120]
[357048159,1743631838621,-851.44330272,0.00032998,2]
[357048160,1743631838631,-400.0,0.00033,2]
[357048161,1743631838641,-235.4,0.00033027,2]
[357048162,1743631838651,-812.1,0.00033087,2]
[357048163,1743631838661,-200.0,0.00033151,2]
[357048164,1743631838671,-11980.86,0.00033259,2]
[357048165,1743631838681,-496.97,0.00034021,2]
[357048166,1743631838691,-1539.46295916,0.00034066,2]
[357048167,1743631838703,-1118.56041704,0.00034066,2]
[357048168,1743631838715,-5482.18915725,0.00034066,2]
[357048169,1743631838725,-190.33,0.000346,120]
[357048170,1743631838734,-1594.51,0.00034685,2]
[357048171,1743631838744,-1852.42,0.00034781,2]
[357048172,1743631838753,-169.05,0.00035,2]
[357048173,1743631838763,-450.0,0.00035,2]
[357048174,1743631838773,-177.43781961,0.00035,30]
[357048175,1743631838783,-650.43,0.00035115,2]
[357048176,1743631838793,-212.0,0.00035145,2]
[357048177,1743631838802,-548.74,0.00035145,31]
[357048178,1743631838812,-5167.6,0.00035145,2]
[357048179,1743631838821,-151.0,0.00035179,2]
[357048180,1743631838831,-166.66,0.00035926,2]
[357048181,1743631838841,-3200.27493506,0.00036505,2]
[357048182,1743631838852,-4939.93759839,0.00036505,2]
[357048183,1743631838862,-1454.99561813,0.00036903,2]
[357048184,1743631838873,-630.25343203,0.00036903,2]
[357048185,1743631838885,-607.54993428,0.00036903,2]
[357048186,1743631838897,-1247.064412,0.00036903,2]
[357048187,1743631838910,-637.19482697,0.00036903,2]
[357048188,1743631838933,-590.54177659,0.00036903,2]
[357048189,1743631838943,-1594.51,0.00036949,2]
[357048190,1743631838954,-500.0,0.00037,2]
[357048191,1743631838964,-166.66,0.00037112,2]
[357048192,1743631838975,-339.80259818,0.000372,103]
[357048193,1743631838985,-339.80259816,0.000372,103]
[357048194,1743631838996,-339.80259816,0.000372,103]
[357048195,1743631839172,-180.24,0.0003765,120]
[357048196,1743631839182,-154.45,0.00037863,2]
[357048197,1743631839192,-227.97701645,0.00038,120]
[357048198,1743631839201,-178.43721206,0.00038,120]
[357048199,1743631839211,-163.65090034,0.00038168,2]
[357048200,1743631839221,-151.0,0.00038179,2]
[357048201,1743631839231,-4094.0,0.00038268,2]
[357048202,1743631839241,-1434.0,0.00038268,2]
[357048203,1743631839250,-543.0,0.00038268,2]
[357048204,1743631839260,-909.0,0.00038268,2]
[357048205,1743631839270,-166.66,0.00038298,2]
[357048206,1743631839280,-161.26907924,0.00038371,5]
[357048207,1743631839290,-500.0,0.00038371,5]
[357048208,1743631839300,-500.0,0.00038376,5]
[357048209,1743631839310,-502.01642618,0.00038376,5]
[357048210,1743631839320,-159.89487672,0.00038376,5]
[357048211,1743631839331,-605.15964694,0.00038376,5]
[357048212,1743631839342,-564.08006076,0.00038376,5]
[357048213,1743631839352,-499.7393482,0.00038376,5]
[357048214,1743631839361,-313.51591052,0.00038376,5]
[357048215,1743631839372,-269.58719324,0.00038476,5]
[357048216,1743631839381,-501.12620593,0.0003863,5]
[357048217,1743631839391,-317.97108133,0.0003863,5]
[357048218,1743631839401,-5167.6,0.0003866,2]
[357048219,1743631839410,-500.0,0.00038775,5]
[357048220,1743631839420,-1001.0,0.000389,2]
[357048221,1743631839432,-5683.44139436,0.00038944,2]
[357048222,1743631839448,-493.97951791,0.00038944,2]
[357048234,1743631840058,-308.22576,0.00035179,2]
[357048235,1743631840148,-809.77424,0.00035179,2]
[357048236,1743631840159,-8.93838645,0.00038944,2]
[357048237,1743631840173,-1138.78380278,0.00038944,2]
[357048238,1743631840186,-815.06943195,0.00038944,2]
[357048239,1743631840197,-500.0,0.00038963,5]
[357048240,1743631840208,-182.38962285,0.00039,2]